bitfinex-derivatives/quotes_SOLF0:USTF0_20260311
["timestamp","ask_amount","ask_price","bid_price","bid_amount"]
[1773230234470,2.95923599,84.502,84.423,82.01796404]
[1773230234675,12.00091685,84.501,84.423,82.01796404]
[1773230234977,7.47353106,84.47,84.371,82.01796404]
[1773230235171,10.79211575,84.467,84.387,82.01796404]
[1773230235372,12.00091685,84.466,84.387,82.01796404]
[1773230235671,12.00091685,84.465,84.387,82.01796404]
[1773230235877,12.00091685,84.464,84.387,82.01796404]
[1773230236065,12.00091685,84.463,84.387,82.01796404]
[1773230236374,12.00091685,84.462,84.387,82.01796404]
[1773230236566,12.00091685,84.461,84.387,82.01796404]
[1773230236770,12.00091685,84.46,84.387,82.01796404]
[1773230236965,12.00091685,84.459,84.387,82.01796404]
[1773230237164,2.95923599,84.458,84.387,82.01796404]
[1773230237364,2.95923599,84.457,84.387,82.01796404]
[1773230237565,2.95923599,84.456,84.387,82.01796404]
[1773230237765,2.95923599,84.455,84.387,82.01796404]
[1773230237968,2.95923599,84.454,84.389,81.89962076]
[1773230238169,2.95923599,84.453,84.389,81.89962076]
[1773230238376,2.95923599,84.452,84.389,81.89962076]
[1773230238674,2.95923599,84.451,84.389,81.89962076]
[1773230238876,2.95923599,84.45,84.389,81.89962076]
[1773230239076,2.95923599,84.449,84.386,11.92]
[1773230239375,2.95923599,84.448,84.386,93.78107611]
[1773230239570,2.95923599,84.447,84.386,93.78107611]
[1773230239770,2.95923599,84.446,84.386,93.78107611]
[1773230239972,2.95923599,84.445,84.386,93.78107611]
[1773230240172,11.92,84.466,84.386,93.78107611]
[1773230240173,12.00091685,84.461,84.386,93.78107611]
[1773230240374,2.95923599,84.46,84.386,93.78107611]
[1773230240574,2.95923599,84.459,84.386,93.78107611]
[1773230240775,2.95923599,84.458,84.386,93.78107611]
[1773230240974,2.95923599,84.457,84.386,93.78107611]
[1773230241172,2.95923599,84.456,84.386,93.78107611]
[1773230241377,2.95923599,84.464,84.386,93.78107611]
[1773230241578,2.95923599,84.463,84.388,81.85046478]
[1773230241779,2.95923599,84.462,84.389,11.92]
[1773230242077,2.95923599,84.461,84.39,81.85046478]
[1773230242275,2.95923599,84.46,84.39,81.85046478]
[1773230242478,2.95923599,84.459,84.39,81.85046478]
[1773230242678,2.95923599,84.458,84.39,81.85046478]
[1773230242977,2.95923599,84.457,84.392,81.85046478]
[1773230243177,12.00091685,84.467,84.394,81.86321461]
[1773230243379,2.95923599,84.466,84.396,81.86321461]
[1773230243578,2.95923599,84.465,84.397,11.92]
[1773230243777,2.95923599,84.464,84.397,93.78321461]
[1773230244078,2.95923599,84.463,84.397,93.78321461]
[1773230244279,2.95923599,84.462,84.397,93.78321461]
[1773230244479,9.04168086,84.469,84.397,93.78321461]
[1773230244778,12.00229691,84.468,84.397,93.78321461]
[1773230244975,2.96061605,84.467,84.397,81.86321461]
[1773230245180,2.96061605,84.466,84.399,81.87441133]
[1773230245377,2.96061605,84.465,84.399,81.87441133]
[1773230245575,2.96061605,84.464,84.399,81.87441133]
[1773230245774,2.96061605,84.475,84.399,81.87441133]
[1773230245977,2.96061605,84.474,84.4,11.92]
[1773230246172,2.96061605,84.473,84.401,81.87441133]
[1773230246378,2.96061605,84.472,84.403,81.87441133]
[1773230246578,289.38115345,84.49,84.403,81.87441133]
[1773230246579,12.00229691,84.471,84.403,81.87441133]
[1773230246780,12.00229691,84.47,84.404,11.92]
[1773230247081,12.00229691,84.469,84.404,93.79441133]
[1773230247277,295.92751787,84.49,84.404,93.79441133]
[1773230247278,12.00229691,84.468,84.404,93.79441133]
[1773230247480,12.00229691,84.467,84.404,93.79441133]
[1773230247680,2.96061605,84.466,84.404,93.79441133]
[1773230247882,2.96061605,84.465,84.404,93.79441133]
[1773230248080,2.96061605,84.464,84.404,93.79441133]
[1773230248381,12.00229691,84.463,84.404,93.79441133]
[1773230248581,12.00229691,84.462,84.404,93.79441133]
[1773230248781,12.00229691,84.461,84.404,93.79441133]
[1773230248980,10.79211575,84.483,84.404,93.79441133]
[1773230248981,12.00229691,84.46,84.404,93.79441133]
[1773230249186,12.00229691,84.459,84.404,93.79441133]
[1773230249389,12.00229691,84.458,84.404,93.79441133]
[1773230249589,12.00229691,84.457,84.404,93.79441133]
[1773230249790,12.00229691,84.456,84.404,93.79441133]
[1773230249995,12.00229691,84.455,84.404,93.79441133]
[1773230250190,10.79211575,84.469,84.404,93.79441133]
[1773230250191,12.00229691,84.454,84.404,93.79441133]
[1773230250393,12.00229691,84.453,84.404,93.79441133]
[1773230250585,12.00229691,84.452,84.404,93.79441133]
[1773230250791,2.96061605,84.451,84.404,93.79441133]
[1773230250991,9.77790313,84.466,84.404,93.79441133]
[1773230251191,12.73810649,84.465,84.404,93.79441133]
[1773230251390,12.73810649,84.464,84.404,93.79441133]
[1773230251590,12.73810649,84.463,84.404,93.79441133]
[1773230251890,12.73810649,84.462,84.404,93.79441133]
[1773230252193,12.73810649,84.461,84.404,93.79441133]
[1773230252393,12.73810649,84.46,84.404,93.79441133]
[1773230252693,12.73810649,84.459,84.404,81.87441133]
[1773230252887,12.73810649,84.458,84.406,81.81165845]
[1773230253085,12.73810649,84.457,84.406,81.81165845]
[1773230253288,12.73810649,84.456,84.406,81.81165845]
[1773230253583,12.73810649,84.455,84.406,81.81165845]
[1773230253784,12.73810649,84.454,84.406,81.81165845]
[1773230253984,12.73810649,84.453,84.406,81.81165845]
[1773230254195,12.75178731,84.452,84.406,81.81165845]
[1773230254394,2.96020336,84.451,84.406,81.81165845]
[1773230254594,2.96020336,84.45,84.406,81.81165845]
[1773230254893,10.79211575,84.472,84.406,81.81165845]
[1773230255094,12.75247034,84.471,84.406,81.81165845]
[1773230255295,12.75247034,84.47,84.406,81.81165845]
[1773230255487,12.75247034,84.469,84.406,81.81165845]
[1773230255793,12.75247034,84.468,84.406,81.81165845]
[1773230256091,12.75247034,84.467,84.406,81.81165845]
[1773230256396,12.75247034,84.466,84.406,81.81165845]
[1773230256595,12.75247034,84.465,84.406,81.81165845]
[1773230256795,12.75247034,84.464,84.406,81.81165845]
[1773230257000,12.75247034,84.463,84.411,81.86188543]
[1773230257200,12.75247034,84.462,84.413,81.84557463]
[1773230257392,2.96020487,84.461,84.413,81.84557463]
[1773230257592,2.96020487,84.46,84.413,81.84557463]
[1773230257792,2.96020487,84.459,84.413,81.84557463]
[1773230257998,10.79211575,84.482,84.413,81.84557463]
[1773230258199,23.55330938,84.481,84.413,81.84557463]
[1773230258400,12.76119363,84.48,84.413,81.84557463]
[1773230258598,12.76119363,84.479,84.413,81.84557463]
[1773230258900,12.76119363,84.478,84.413,81.84557463]
[1773230259101,12.76119363,84.477,84.413,81.84557463]
[1773230259290,12.76119363,84.476,84.413,81.84557463]
[1773230259495,12.76119363,84.475,84.413,81.84557463]
[1773230259694,12.76119363,84.474,84.431,81.7916109]
[1773230259900,12.76119363,84.473,84.431,81.7916109]
[1773230260101,12.76119363,84.472,84.433,81.7916109]
[1773230260399,287.97714983,84.506,84.461,70.50685541]
[1773230260592,287.97714983,84.506,84.462,11.92]
[1773230260790,2.61552388,84.5,84.462,11.92]
[1773230261596,287.97714983,84.506,84.462,11.92]
[1773230266804,287.97714983,84.506,84.462,82.45867976]
[1773230267100,287.97714983,84.506,84.471,70.53867976]
[1773230268498,287.97714983,84.506,84.473,70.55055203]
[1773230269302,287.97714983,84.506,84.481,70.54907686]
[1773230269600,11.92,84.536,84.481,70.54907686]
[1773230271602,2.6132023,84.54,84.482,11.92]
[1773230272003,11.92,84.543,84.482,11.92]
[1773230272199,2.6132023,84.54,84.482,82.46830208]
[1773230272401,2.6132023,84.53,84.482,82.46830208]
[1773230272602,2.95787193,84.529,84.482,82.46830208]
[1773230272801,2.95787193,84.528,84.482,82.46830208]
[1773230272997,2.6132023,84.53,84.482,82.46830208]
[1773230273503,2.6132023,84.54,84.482,70.54830208]
[1773230273706,2.6132023,84.54,84.484,70.51661896]
[1773230277908,2.6132023,84.54,84.485,11.92]
[1773230278101,2.6132023,84.54,84.485,82.43379584]
[1773230281799,2.6132023,84.54,84.485,70.51379584]
[1773230282004,2.6132023,84.54,84.48,2.6132023]
[1773230282005,2.6132023,84.54,84.487,70.52426772]
[1773230282397,2.6132023,84.55,84.501,70.52426772]
[1773230283206,2.6132023,84.55,84.503,70.56212644]
[1773230284211,2.6132023,84.53,84.494,11.92]
[1773230285210,2.95787193,84.545,84.494,82.51842301]
[1773230285409,10.646,84.534,84.494,82.51842301]
[1773230286106,10.646,84.528,84.494,82.51842301]
[1773230286503,2.6132023,84.54,84.494,82.51842301]
[1773230288412,2.6132023,84.55,84.494,82.51842301]
[1773230288613,10.645,84.537,84.494,82.51842301]
[1773230289307,2.6132023,84.54,84.501,70.60375053]
[1773230289714,2.6132023,84.55,84.501,70.60375053]
[1773230289911,2.95787193,84.549,84.501,70.60375053]
[1773230290107,2.95787193,84.548,84.501,70.60375053]
[1773230290307,10.646,84.534,84.501,70.60375053]
[1773230290612,10.646,84.534,84.503,70.60375053]
[1773230296420,10.646,84.528,84.503,70.60375053]
[1773230296924,2.95787193,84.549,84.503,70.60375053]
[1773230297224,2.95787193,84.548,84.503,70.60375053]
[1773230297531,2.95787193,84.547,84.503,70.60375053]
[1773230297824,2.95683222,84.563,84.521,70.62231403]
[1773230298026,2.95683222,84.562,84.521,70.62231403]
[1773230298326,2.95683222,84.561,84.521,70.62231403]
[1773230298520,2.95683222,84.56,84.522,11.92]
[1773230298823,2.6132023,84.57,84.522,82.54231403]
[1773230299022,10.644,84.547,84.522,82.54231403]
[1773230299222,10.644,84.547,84.523,11.92]
[1773230300024,2.95649669,84.559,84.522,52.31031403]
[1773230300226,2.95649669,84.558,84.524,11.92]
[1773230300420,2.95649669,84.557,84.524,11.92]
[1773230300626,2.95649669,84.556,84.524,11.92]
[1773230300927,2.95649669,84.555,84.524,11.92]
[1773230301126,2.95649669,84.554,84.524,11.92]
[1773230301324,2.95649669,84.553,84.524,11.92]
[1773230301519,2.95649669,84.552,84.523,11.92]
[1773230301721,2.6132023,84.57,84.523,11.92]
[1773230301921,10.644,84.546,84.523,11.92]
[1773230302925,10.643,84.553,84.523,11.92]
[1773230303127,2.95655199,84.552,84.523,11.92]
[1773230303323,2.95655199,84.551,84.523,11.92]
[1773230303525,2.95655199,84.55,84.524,58.16890874]
[1773230303725,2.95655199,84.549,84.524,58.16890874]
[1773230303927,2.6132023,84.57,84.524,58.16890874]
[1773230304119,2.95655199,84.563,84.524,58.16890874]
[1773230304319,2.95655199,84.562,84.524,58.16890874]
[1773230304520,2.95655199,84.561,84.524,58.16890874]
[1773230304727,2.95655199,84.56,84.524,58.16890874]
[1773230305026,2.95655199,84.559,84.524,58.16890874]
[1773230305225,2.95655199,84.558,84.524,58.16890874]
[1773230305428,2.95655199,84.557,84.524,39.74390874]
[1773230305626,2.95655199,84.556,84.524,38.09862196]
[1773230305822,2.6132023,84.56,84.524,38.09862196]
[1773230305823,10.644,84.551,84.524,38.09862196]
[1773230306019,2.95655199,84.55,84.524,38.09862196]
[1773230306223,2.95655199,84.549,84.524,38.09862196]
[1773230306428,10.644,84.546,84.524,38.09862196]
[1773230307026,2.6132023,84.57,84.524,38.09862196]
[1773230307227,2.95654988,84.563,84.524,38.09862196]
[1773230307427,2.95654988,84.562,84.524,38.09862196]
[1773230307730,2.6132023,84.56,84.465,21.309]
[1773230307929,2.95654988,84.559,84.5,2.6132023]
[1773230308125,2.95654988,84.558,84.501,11.92]
[1773230308432,2.95654988,84.557,84.501,11.92]
[1773230308730,2.95654988,84.556,84.501,11.92]
[1773230308930,2.95654988,84.555,84.501,11.92]
[1773230309231,2.95654988,84.554,84.501,11.92]
[1773230309530,2.95654988,84.553,84.51,2.6132023]
[1773230309730,2.95654988,84.552,84.511,30.14371832]
[1773230309931,2.95654988,84.551,84.511,30.14371832]
[1773230310228,2.6132023,84.57,84.513,30.14371832]
[1773230310427,2.6132023,84.57,84.512,11.92]
[1773230310428,10.643,84.552,84.515,30.14371832]
[1773230310932,11.92,84.577,84.521,30.14371832]
[1773230311121,2.9558637,84.563,84.523,30.14371832]
[1773230311326,2.9558637,84.562,84.523,30.14371832]
[1773230311630,2.9558637,84.561,84.523,30.14371832]
[1773230311831,2.9558637,84.56,84.523,30.14371832]
[1773230312132,2.9558637,84.559,84.523,30.14371832]
[1773230312331,10.642,84.561,84.523,30.14371832]
[1773230312532,2.95591627,84.56,84.523,30.14371832]
[1773230312728,2.95591627,84.559,84.523,30.14371832]
[1773230312922,10.642,84.561,84.523,30.14371832]
[1773230313127,5.56911838,84.56,84.523,30.14371832]
[1773230313429,2.95591608,84.559,84.505,30.20410365]
[1773230313631,2.95591608,84.558,84.511,30.20410365]
[1773230313826,2.95591608,84.557,84.511,30.20410365]
[1773230314022,2.95591608,84.556,84.511,30.20410365]
[1773230314224,11.92,84.569,84.511,30.20410365]
[1773230314429,2.95620825,84.563,84.511,30.20410365]
[1773230314629,2.95620825,84.562,84.511,30.20410365]
[1773230314929,2.95620825,84.561,84.511,30.20410365]
[1773230315128,2.95620825,84.56,84.511,30.20410365]
[1773230315433,11.92,84.569,84.519,30.18656427]
[1773230315434,10.643,84.558,84.519,30.18656427]
[1773230315732,2.95620825,84.557,84.519,30.18656427]
[1773230315932,2.95620825,84.556,84.519,30.18656427]
[1773230316133,2.95620825,84.555,84.519,30.18656427]
[1773230316333,2.95620825,84.554,84.519,30.18656427]
[1773230316534,10.643,84.558,84.519,30.18656427]
[1773230316724,2.95620746,84.557,84.519,30.18656427]
[1773230316930,2.95620746,84.556,84.519,30.18656427]
[1773230317126,2.95620746,84.555,84.519,30.18656427]
[1773230317332,2.95620746,84.554,84.519,30.18656427]
[1773230317526,10.643,84.558,84.519,30.18656427]
[1773230317728,2.95620746,84.557,84.519,30.18656427]
[1773230317926,2.95620746,84.556,84.519,30.18656427]
[1773230318130,11.92,84.569,84.521,30.1862362]
[1773230318332,2.95599893,84.563,84.521,30.1862362]
[1773230318531,2.95599893,84.562,84.521,30.1862362]
[1773230318834,2.95599893,84.561,84.521,30.1862362]
[1773230319035,11.92,84.569,84.521,30.1862362]
[1773230319036,2.95599893,84.56,84.521,30.1862362]
[1773230319234,2.95599893,84.559,84.521,30.1862362]
[1773230319429,2.95599893,84.558,84.523,30.1866555]
[1773230319633,2.95599893,84.557,84.523,30.1866555]
[1773230319836,10.642,84.562,84.523,30.1866555]
[1773230320032,2.95599893,84.561,84.523,30.1866555]
[1773230320230,2.95599893,84.56,84.523,30.1866555]
[1773230320433,2.95599893,84.559,84.523,30.1866555]
[1773230320634,2.95599893,84.558,84.523,30.1866555]
[1773230320835,10.642,84.562,84.523,30.1866555]
[1773230321133,2.95599893,84.561,84.523,30.1866555]
[1773230321431,5.56920123,84.56,84.523,30.1866555]
[1773230321638,2.95599893,84.559,84.523,30.1866555]
[1773230321938,2.95599893,84.558,84.523,30.1866555]
[1773230322139,11.92,84.569,84.523,30.1866555]
[1773230322339,2.95599855,84.563,84.523,30.1866555]
[1773230322539,2.95599855,84.562,84.523,30.1866555]
[1773230322740,2.95599855,84.561,84.523,30.1866555]
[1773230322938,2.95599855,84.56,84.523,30.1866555]
[1773230323136,2.95599855,84.559,84.523,30.1866555]
[1773230323337,10.643,84.555,84.523,30.1866555]
[1773230323636,2.95599855,84.554,84.523,30.1866555]
[1773230323934,2.95599855,84.553,84.523,30.1866555]
[1773230324134,10.643,84.555,84.523,30.1866555]
[1773230324334,2.95620553,84.554,84.523,30.1866555]
[1773230324535,2.95620553,84.553,84.523,30.1866555]
[1773230324734,10.642,84.561,84.523,30.1866555]
[1773230324940,2.95620475,84.56,84.523,30.1866555]
[1773230325238,2.95620475,84.559,84.525,30.17974446]
[1773230325438,2.95620475,84.558,84.525,30.17974446]
[1773230325637,2.95620475,84.557,84.525,30.17974446]
[1773230325839,10.642,84.561,84.525,30.17974446]
[1773230326039,2.95599662,84.56,84.525,30.17974446]
[1773230326243,2.95599662,84.559,84.525,30.17974446]
[1773230326438,10.642,84.561,84.525,30.17974446]
[1773230326740,2.95591743,84.56,84.525,30.17974446]
[1773230326940,2.95591743,84.559,84.525,30.17974446]
[1773230327240,10.642,84.561,84.525,30.17974446]
[1773230327541,2.95591529,84.56,84.525,30.17974446]
[1773230327738,2.95591529,84.559,84.525,30.17974446]
[1773230327938,10.642,84.561,84.525,30.17974446]
[1773230328539,11.92,84.584,84.531,30.19076221]
[1773230328741,2.95559404,84.583,84.531,30.19076221]
[1773230328939,2.95559404,84.582,84.531,30.19076221]
[1773230329140,2.95559404,84.581,84.541,30.19076221]
[1773230329333,2.95559404,84.58,84.541,30.19076221]
[1773230329532,2.95559404,84.579,84.541,30.19076221]
[1773230329736,2.95559404,84.578,84.541,30.19076221]
[1773230329942,2.95559404,84.577,84.541,30.19076221]
[1773230330243,2.95559404,84.576,84.541,30.19076221]
[1773230330433,10.639,84.583,84.541,30.19076221]
[1773230330633,10.64,84.581,84.541,30.19076221]
[1773230330836,2.95537881,84.58,84.543,30.1518609]
[1773230331035,2.95537881,84.579,84.543,30.1518609]
[1773230331240,2.95537881,84.578,84.543,30.1518609]
[1773230331440,2.95537881,84.577,84.543,30.1518609]
[1773230331637,10.639,84.588,84.543,30.1518609]
[1773230331838,2.95532182,84.587,84.543,30.1518609]
[1773230332035,10.639,84.585,84.543,30.1518609]
[1773230332243,2.95532182,84.584,84.545,30.17570572]
[1773230332442,2.61023686,84.6,84.545,30.17570572]
[1773230332637,13.59210837,84.599,84.551,30.17570572]
[1773230332835,2.95510837,84.598,84.555,30.17570572]
[1773230333043,2.95510837,84.597,84.555,30.17570572]
[1773230333243,2.95510837,84.596,84.555,30.17570572]
[1773230333543,2.95510837,84.595,84.555,30.17570572]
[1773230333744,10.638,84.592,84.555,30.17570572]
[1773230333945,2.95510837,84.591,84.555,30.17570572]
[1773230334139,9.14669057,84.611,84.555,30.17570572]
[1773230334341,5.56528636,84.61,84.557,24.86988942]
[1773230334638,2.61023686,84.6,84.557,24.86988942]
[1773230334944,2.9550495,84.599,84.557,24.86988942]
[1773230335143,2.9550495,84.598,84.557,24.86988942]
[1773230335344,2.9550495,84.597,84.557,24.86988942]
[1773230335543,2.9550495,84.596,84.557,24.86988942]
[1773230335736,10.639,84.585,84.557,24.86988942]
[1773230335939,2.61023686,84.6,84.557,24.86988942]
[1773230336141,2.95504719,84.599,84.557,24.86988942]
[1773230336343,2.61023686,84.62,84.561,24.87019673]
[1773230336547,2.95444153,84.611,84.561,24.87019673]
[1773230336740,2.95444153,84.61,84.561,24.87019673]
[1773230336936,2.95444153,84.609,84.561,24.87019673]
[1773230337246,2.61023686,84.63,84.571,24.87019673]
[1773230337446,2.61023686,84.62,84.571,24.87019673]
[1773230338039,2.61023686,84.61,84.574,24.86118468]
[1773230338645,2.61023686,84.61,84.574,6.86018468]
[1773230338847,2.61023686,84.6,84.574,0.00018468]
[1773230339045,2.61023686,84.61,84.574,0.00018468]
[1773230340152,2.61023686,84.6,84.506,35.53]
[1773230340347,2.95451675,84.599,84.54,2.61023686]
[1773230340548,2.95451675,84.598,84.541,11.92]
[1773230340748,2.95451675,84.597,84.541,11.92]
[1773230340948,2.95451675,84.596,84.542,12.41785492]
[1773230341152,2.61023686,84.59,84.542,12.41785492]
[1773230341346,10.637,84.6,84.556,12.38518582]
[1773230341743,10.637,84.6,84.493,35.53]
[1773230341744,2.61023686,84.58,84.54,12.38518582]
[1773230341942,9.13338519,84.623,84.541,12.38518582]
[1773230341943,2.61023686,84.59,84.541,12.38518582]
[1773230342749,10.64,84.581,84.541,12.38518582]
[1773230342950,2.61023686,84.59,84.541,12.38518582]
[1773230343351,10.639,84.589,84.542,12.40001745]
[1773230344448,10.639,84.589,84.546,12.40001745]
[1773230346453,2.61023686,84.59,84.546,12.40001745]
[1773230346854,2.95508168,84.589,84.546,12.40001745]
[1773230347148,2.95508168,84.588,84.546,12.40001745]
[1773230347354,2.61023686,84.57,84.521,12.41198765]
[1773230347556,10.641,84.568,84.523,12.41198765]
[1773230348745,10.642,84.561,84.523,12.41198765]
[1773230351056,10.641,84.569,84.526,12.47146116]
[1773230352753,10.641,84.569,84.527,10.646]
[1773230352954,10.641,84.569,84.528,12.45522559]
[1773230353260,2.61023686,84.57,84.53,10.646]
[1773230353450,2.61023686,84.57,84.531,12.45705473]
[1773230354252,13.25123686,84.57,84.531,12.45705473]
[1773230357460,10.641,84.567,84.531,12.45705473]
[1773230358057,21.274,84.603,84.531,12.45705473]
[1773230358058,10.641,84.574,84.531,12.45705473]
[1773230358658,2.61023686,84.57,84.531,12.45705473]
[1773230358953,2.61023686,84.56,84.531,12.45705473]
[1773230359861,10.642,84.565,84.531,12.45705473]
[1773230361065,2.61023686,84.57,84.531,12.45705473]
[1773230361267,2.95577663,84.569,84.531,12.45705473]
[1773230361465,2.61023686,84.58,84.531,12.45705473]
[1773230361657,2.95551081,84.579,84.531,12.45705473]
[1773230361862,2.61023686,84.58,84.531,12.45705473]
[1773230361863,2.95547124,84.578,84.531,12.45705473]
[1773230362167,2.61023686,84.58,84.531,12.45705473]
[1773230362363,10.64,84.576,84.532,10.646]
[1773230362564,10.64,84.576,84.533,12.4823293]
[1773230362865,2.61023686,84.58,84.533,12.4823293]
[1773230363068,2.95547027,84.579,84.533,12.4823293]
[1773230363264,10.64,84.575,84.536,12.51127786]
[1773230365265,21.274,84.603,84.52,14.53023686]
[1773230365266,10.639,84.583,84.542,12.53360859]
[1773230365567,2.61023686,84.58,84.542,12.53360859]
[1773230365765,2.95542991,84.579,84.542,12.53360859]
[1773230365965,2.95542991,84.578,84.542,12.53360859]
[1773230366267,2.95542933,84.577,84.542,12.53360859]
[1773230366467,2.61023686,84.58,84.542,12.53360859]
[1773230366668,2.95546833,84.579,84.542,12.53360859]
[1773230366975,2.95546833,84.578,84.542,12.53360859]
[1773230367166,2.95542837,84.577,84.542,12.53360859]
[1773230367363,10.641,84.572,84.534,10.645]
[1773230367671,2.61023686,84.57,84.535,12.55802078]
[1773230367868,2.95577571,84.569,84.535,12.55802078]
[1773230368066,2.61023686,84.56,84.535,12.55802078]
[1773230368266,2.61023686,84.56,84.519,12.55802078]
[1773230368463,2.95633585,84.559,84.519,12.55802078]
[1773230368668,10.643,84.556,84.519,12.55802078]
[1773230370270,10.644,84.551,84.519,12.55802078]
[1773230370670,10.643,84.554,84.519,12.55802078]
[1773230371963,2.61023686,84.56,84.52,10.647]
[1773230372265,2.95612731,84.559,84.521,12.5543836]
[1773230372469,2.95612731,84.558,84.521,12.5543836]
[1773230372670,2.95612731,84.557,84.521,12.5543836]
[1773230372870,2.61023686,84.56,84.521,12.5543836]
[1773230373065,2.95612731,84.559,84.521,12.5543836]
[1773230373266,2.95612731,84.558,84.521,12.5543836]
[1773230373465,2.95618315,84.557,84.521,12.5543836]
[1773230373674,2.95618315,84.556,84.521,12.5543836]
[1773230373875,2.61023686,84.56,84.521,12.5543836]
[1773230373876,2.95618315,84.555,84.521,12.5543836]
[1773230374075,2.95618315,84.554,84.521,12.5543836]
[1773230374277,2.61023686,84.56,84.521,12.5543836]
[1773230374472,2.95618295,84.559,84.521,12.5543836]
[1773230374672,2.95618295,84.558,84.521,12.5543836]
[1773230374874,10.643,84.556,84.521,12.5543836]
[1773230375073,2.95618295,84.555,84.521,12.5543836]
[1773230375275,10.643,84.556,84.521,12.5543836]
[1773230376577,10.644,84.548,84.521,12.5543836]
[1773230376775,2.61023686,84.54,84.48,2.61023686]
[1773230376980,2.61023686,84.54,84.492,10.651]
[1773230377379,10.645,84.537,84.492,10.651]
[1773230377981,10.645,84.537,84.497,10.65]
[1773230378875,10.645,84.537,84.498,6.33687328]
[1773230379075,2.61023686,84.54,84.498,6.33687328]
[1773230379988,2.61023686,84.53,84.498,6.33687328]
[1773230381490,13.25523686,84.54,84.498,6.33687328]
[1773230384788,2.61023686,84.54,84.498,6.33687328]
[1773230385391,2.61023686,84.54,84.502,6.28811433]
[1773230385988,2.95703231,84.539,84.502,6.28811433]
[1773230386190,2.61023686,84.54,84.502,6.28811433]
[1773230386991,2.61023686,84.55,84.502,6.28811433]
[1773230387594,2.61164332,84.55,84.502,6.28811433]
[1773230388493,2.61164332,84.55,84.504,6.33356968]
[1773230389395,2.61164332,84.55,84.506,6.3282631]
[1773230389896,2.61164332,84.55,84.508,6.3282631]
[1773230390092,2.61164332,84.54,84.508,6.3282631]
[1773230390998,2.61164332,84.52,84.455,6.32829927]
[1773230391294,10.8475488,84.556,84.461,6.32614201]
[1773230391490,2.61164332,84.52,84.461,6.32614201]
[1773230391686,2.61164332,84.53,84.471,6.32614201]
[1773230391886,2.61164332,84.51,84.471,6.32614201]
[1773230392491,9.1225006,84.562,84.471,6.32614201]
[1773230392691,29.00817253,84.606,84.471,6.32614201]
[1773230392692,2.61164332,84.53,84.471,6.32614201]
[1773230393093,2.61164332,84.52,84.471,6.32614201]
[1773230393598,2.61164332,84.52,84.473,5.9806275]
[1773230393798,13.25764332,84.53,84.473,5.9806275]
[1773230394496,10.648,84.519,84.473,5.9806275]
[1773230395100,2.95752445,84.529,84.479,5.9806275]
[1773230395300,10.646,84.531,84.481,5.97049021]
[1773230395491,2.95752445,84.557,84.501,5.97049021]
[1773230395697,2.61164332,84.55,84.501,5.97049021]
[1773230396299,2.95752445,84.553,84.511,5.97052776]
[1773230396500,14.46328061,84.599,84.521,5.97052776]
[1773230396501,2.61164332,84.58,84.521,5.97052776]
[1773230396802,2.61164332,84.58,84.478,35.53]
[1773230396803,2.61164332,84.57,84.522,5.97052776]
[1773230397295,2.95583366,84.569,84.47,2.61164332]
[1773230397496,165.466,84.605,84.407,165.854]
[1773230397497,2.61164332,84.54,84.491,6.04182712]
[1773230397895,13.25664332,84.54,84.493,10.651]
[1773230398095,10.645,84.54,84.494,6.04182712]
[1773230398404,13.25664332,84.54,84.494,6.04182712]
[1773230398599,2.61164332,84.53,84.494,6.04182712]
[1773230399894,10.646,84.532,84.494,6.04182712]
[1773230400303,2.61164332,84.54,83.945,178.0]
[1773230400304,10.647,84.527,84.48,6.04820786]
[1773230400602,2.61164332,84.52,84.48,6.04820786]
[1773230400798,2.61164332,84.51,84.464,6.04820786]
[1773230401597,10.648,84.514,84.467,6.04987514]
[1773230401805,2.61164332,84.52,84.467,6.04987514]
[1773230402604,13.25864332,84.52,84.468,6.04987514]
[1773230402804,13.25864332,84.52,84.42,35.53]
[1773230402805,2.61164332,84.49,84.434,6.04987514]
[1773230402997,2.61164332,84.5,84.441,6.04987514]
[1773230403196,2.61164332,84.51,84.461,6.10907441]
[1773230403398,2.61164332,84.51,84.368,36.91664067]
[1773230403399,2.61164332,84.54,84.481,6.10907441]
[1773230403607,10.648,84.517,84.481,6.10907441]
[1773230403804,2.61164332,84.52,84.481,6.10907441]
[1773230404004,2.61164332,84.53,84.481,6.10907441]
[1773230406206,10.645,84.536,84.481,6.10907441]
[1773230408198,2.95758168,84.543,84.481,6.10907441]
[1773230408407,2.61164332,84.53,84.481,6.10907441]
[1773230409102,10.645,84.539,84.483,6.22690128]
[1773230409306,2.95758168,84.564,84.491,6.22997021]
[1773230409506,2.61164332,84.55,84.491,6.22997021]
[1773230410002,2.95758168,84.549,84.491,6.22997021]
[1773230410208,2.61164332,84.54,84.491,6.22997021]
[1773230410409,13.60158168,84.547,84.493,6.22997021]